fUSD/lending_fUSD_20240625
["ID","MTS","AMOUNT","RATE_DAILY","PERIOD"]
[330346623,1719279058955,-6885.8518643,0.00022974,2]
[330346624,1719279058965,-1036.3928382,0.00022974,2]
[330346625,1719279058975,-1194.8969802,0.00022974,2]
[330346626,1719279058985,-1353.4011221,0.00022974,2]
[330346627,1719279058994,-155.35315589,0.00022979,2]
[330346628,1719279059004,-2137689.93006954,0.0002299,5]
[330346629,1719279059741,-88947.71125595,0.0002299,5]
[330346630,1719279059894,-578.10437215,0.0002,2]
[330346631,1719279059904,-578.10437215,0.0002,2]
[330346632,1719279059914,-54.8912557,0.0002299,5]
[330346633,1719279059926,-26267.01869104,0.0002299,5]
[330346634,1719279061209,-17.25762254,0.00016786,2]
[330346635,1719279061221,-1180.56437746,0.00016786,2]
[330346636,1719279061230,-578.10437215,0.0002,2]
[330346637,1719279061240,-578.10437215,0.0002,2]
[330346638,1719279061249,-578.10437215,0.0002,2]
[330346639,1719279061261,-578.10437215,0.0002,2]
[330346640,1719279061270,-578.10437215,0.0002,2]
[330346641,1719279061279,-578.10437215,0.0002,2]
[330346642,1719279061288,-578.10437215,0.0002,2]
[330346643,1719279061297,-578.10437215,0.0002,2]
[330346644,1719279061307,-578.10437215,0.0002,2]
[330346645,1719279061316,-578.10437215,0.0002,2]
[330346646,1719279061325,-578.10437215,0.0002,2]
[330346647,1719279061335,-235.46522942,0.00020607,2]
[330346648,1719279061691,-1197.0,0.00019786,2]
[330346649,1719279061700,-578.10437215,0.0002,2]
[330346650,1719279061709,-578.10437215,0.0002,2]
[330346651,1719279061718,-930.16099903,0.00020607,2]
[330346652,1719279061728,-305.17488619,0.00021979,2]
[330346653,1719279061740,-863.55405717,0.0002299,5]
[330346654,1719279062586,-1872.82806,0.00016067,2]
[330346655,1719279063151,-1050.24683318,0.00016067,2]
[330346656,1719279122226,953.72749396,0.00026,120]
[330346657,1719279182945,941.4675623,0.00025,60]
[330346658,1719279270433,519.16181553,6.94e-05,2]
[330346659,1719279303597,155.25079706,6.94e-05,2]
[330346660,1719279307472,4154.9242334,6.94e-05,2]
[330346661,1719279358584,243.88654165,0.000101,2]
[330346662,1719279395708,18221.58410791,0.0001,2]
[330346663,1719279508784,1000.0,0.00026,120]
[330346665,1719280040537,-2862.5582996,0.00010799,2]
[330346666,1719280040559,-150.0,0.00010898,2]
[330346667,1719280040580,-1183.54623426,0.00010899,2]
[330346668,1719280053104,-1359.55178538,0.00010899,2]
[330346669,1719280145309,-665.23,0.00010432,2]
[330346670,1719280145330,-652.0,0.00010898,2]
[330346671,1719280145352,-13739.542,0.00010899,2]
[330346672,1719280148180,-2217.36777282,0.00010899,2]
[330346673,1719280148213,-604.70467956,0.00010899,2]
[330346674,1719280148262,-4215.00002044,0.00010899,2]
[330346675,1719280148298,-219.2605486,0.00010899,2]
[330346676,1719280148336,-552.51494431,0.00010899,2]
[330346677,1719280148374,-594.15098843,0.00010899,2]
[330346678,1719280148408,-690.28734422,0.00010999,2]
[330346679,1719280148443,-324.371354,0.00011,2]
[330346680,1719280157152,-2050.49049175,0.00011,2]
[330346681,1719280157189,-6893.80559491,0.000112,2]
[330346682,1719280157217,-17092.64591334,0.000118,2]
[330346683,1719280162110,-4247.92366635,0.000118,2]
[330346684,1719280162135,-8393.44,0.00012383,2]
[330346685,1719280162158,-150.0,0.00012478,2]
[330346686,1719280162182,-1000.0,0.00012488,2]
[330346687,1719280162204,-12088.67,0.00012509,2]
[330346688,1719280162228,-1457.19,0.00012524,2]
[330346689,1719280162249,-1840.97,0.00012547,2]
[330346690,1719280162268,-1927.87,0.00012547,2]
[330346691,1719280162291,-431.19,0.00012547,2]
[330346692,1719280162311,-150.0,0.00012575,2]
[330346693,1719280162332,-4429.32,0.00012575,2]
[330346694,1719280162352,-968.02,0.00012594,2]
[330346695,1719280162372,-3649.57,0.00012594,2]
[330346696,1719280162391,-250.0,0.0001261,2]
[330346697,1719280162411,-7859.54691365,0.0001261,2]
[330346729,1719280232974,-697.14308635,0.0001261,2]
[330346731,1719280232984,-394.45,0.00012622,2]
[330346733,1719280232994,-569.59289925,0.00012636,2]
[330346735,1719280233005,-9765.09974378,0.00012636,2]
[330346738,1719280233022,-543.83019264,0.00012636,2]
[330346740,1719280233281,-7499.01025656,0.00012636,2]
[330346741,1719280233295,-2614.77220606,0.00012636,2]
[330346742,1719280233309,-2907.69470171,0.00012636,2]
[330346743,1719280233320,-179.07,0.0001268,2]
[330346744,1719280233331,-665.23,0.00012695,2]
[330346745,1719280233342,-2085.96884195,0.00013,2]
[330346746,1719280233355,-26.42596279,0.00013,2]
[330346747,1719280233365,-468.5,0.00013141,2]
[330346748,1719280233374,-468.5,0.00013177,2]
[330346749,1719280233384,-226.91,0.00013186,2]
[330346750,1719280233394,-1254.2506337,0.00013209,2]
[330346751,1719280233404,-499.99,0.00013209,2]
[330346752,1719280233414,-468.5,0.00013213,2]
[330346753,1719280233424,-468.5,0.0001325,2]
[330346754,1719280233434,-468.5,0.00013286,2]
[330346755,1719280233443,-62.08451189,0.00013322,2]
[330346756,1719280233457,-406.41548811,0.00013322,2]
[330346757,1719280233468,-468.5,0.00013358,2]
[330346758,1719280233477,-468.5,0.00013394,2]
[330346759,1719280233487,-250.0,0.00013418,2]
[330346760,1719280233496,-468.5,0.0001343,2]
[330346761,1719280233506,-468.5,0.00013466,2]
[330346762,1719280233516,-468.5,0.00013502,2]
[330346763,1719280233526,-468.5,0.00013538,2]
[330346764,1719280233536,-468.5,0.00013574,2]
[330346765,1719280233546,-176.69,0.00013591,2]
[330346766,1719280233555,-468.5,0.0001361,2]
[330346767,1719280233565,-468.5,0.00013646,2]
[330346768,1719280233575,-468.5,0.00013682,2]
[330346769,1719280233585,-583.64,0.00013699,2]
[330346770,1719280233595,-500.0,0.00013699,2]
[330346771,1719280233604,-2948.92,0.00013699,2]
[330346772,1719280233613,-1702.73626987,0.00013699,2]
[330346773,1719280233626,-854.8607206,0.00013699,2]
[330346774,1719280233649,-1.53195192,0.00013699,2]
[330346775,1719280233661,-191.87105761,0.00013699,2]
[330346776,1719280233674,-269.15,0.00013699,2]
[330346777,1719280233687,-468.5,0.00013718,2]
[330346778,1719280233697,-468.5,0.00013754,2]
[330346779,1719280233707,-1184.464,0.0001377,2]
[330346780,1719280233716,-694.25961639,0.0001377,2]
[330346781,1719280233728,-313.10975853,0.0001377,2]
[330346815,1719280239609,-150.26602508,0.0001377,2]
[330346816,1719280239619,-328.50066625,0.00013776,2]
[330346817,1719280239629,-1003.6252691,0.00013777,2]
[330346818,1719280239639,-2003.70803957,0.00013778,2]
[330346819,1719280239650,-19703.23744591,0.00013778,2]
[330346820,1719280239660,-161.75726165,0.0001379,2]
[330346821,1719280239674,-468.5,0.0001379,2]
[330346822,1719280239684,-154.61313563,0.000138,2]
[330346823,1719280239694,-468.5,0.00013826,2]
[330346824,1719280239704,-3064.81138596,0.00013869,2]
[330346825,1719280239713,-13381.26778603,0.0001387,2]
[330346826,1719280239779,-2.36285722,0.0001387,2]
[330346827,1719280239791,-6461.3,0.0001387,2]
[330346828,1719280243435,-195.22071747,0.00012522,2]
[330346829,1719280243444,-6494.87200243,0.0001387,2]
[330346830,1719280243456,-3034.23261669,0.0001387,2]
[330346831,1719280243469,-3346.48622921,0.0001387,2]
[330346832,1719280243479,-999.99,0.0001387,2]
[330346833,1719280243489,-266.10463106,0.00013884,2]
[330346834,1719280243499,-37.41913973,0.00013888,2]
[330346855,1719280243940,-462.58086027,0.00013888,2]
[330346856,1719280243950,-309.76,0.0001389,3]
[330346857,1719280243959,-5189.03000603,0.000139,2]
[330346858,1719280243972,-547.59336367,0.000139,2]
[330346859,1719280243983,-404.8565987,0.000139,2]
[330346860,1719280243994,-15232.12598949,0.000139,2]
[330346861,1719280244005,-723.45559842,0.000139,2]
[330346862,1719280244020,-7112.32674369,0.000139,2]
[330346863,1719280244031,-9538.3021,0.000139,2]
[330346864,1719280244040,-500.0,0.000139,2]
[330346865,1719280244049,-1453.17340066,0.000139,2]
[330346866,1719280244062,-536.28001313,0.000139,2]
[330346867,1719280244381,-16570.91298621,0.000139,2]
[330346868,1719280244392,-7500.0,0.000139,2]
[330346869,1719280244402,-1163.2596038,0.00013949,2]
[330346870,1719280244411,-377.94607328,0.00013989,2]
[330346871,1719280244421,-34461.18277837,0.00014,2]
[330346872,1719280244433,-18175.06079358,0.00014,2]
[330346873,1719280244444,-302.23,0.00014,2]
[330346874,1719280244455,-300.1,0.00014,2]
[330346875,1719280244466,-301.132,0.00014,2]
[330346876,1719280244479,-274.264,0.00014,2]
[330346877,1719280244490,-309.865,0.00014,2]
[330346881,1719280246669,-552.51494431,0.0001261,2]
[330346882,1719280246679,-32.30526583,0.0001261,2]
[330346899,1719280404150,202.729478,0.00025944,120]
[330346900,1719280607213,1200.0,0.00024,30]
[330346901,1719281234497,-598.7,0.00012066,2]
[330346902,1719281234519,-835.0883416,0.00012761,2]
[330346903,1719281234540,-165.87233918,0.00012861,2]
[330346904,1719281234566,-588.00408443,0.00012961,2]
[330346905,1719281234586,-165.87233912,0.00012991,2]
[330346906,1719281234608,-165.87233912,0.00013121,2]
[330346907,1719281234946,-153.07222295,0.00013161,2]
[330346908,1719281235034,-165.87233912,0.00013251,2]
[330346909,1719281235056,-165.87233912,0.00013381,2]
[330346910,1719281235076,-266.10463106,0.00013426,2]
[330346911,1719281235097,-165.87233912,0.0001351,2]
[330346912,1719281235118,-165.87233912,0.0001364,2]
[330346913,1719281235137,-6949.0688,0.000137,2]
[330346914,1719281235157,-157.1391,0.000137,2]
[330346915,1719281235178,-150.0,0.00013744,2]
[330346916,1719281235200,-2646.33,0.00013745,2]
[330346917,1719281235221,-165.87233912,0.0001377,2]
[330346918,1719281235244,-200.0,0.00013859,2]
[330346919,1719281235274,-499.99,0.00013859,2]
[330346920,1719281235297,-177.49039644,0.000139,2]
[330346921,1719281245158,-945.478014,0.00013358,2]
[330346922,1719281245178,-32633.73895083,0.000139,2]
[330346926,1719281432601,-460.74407773,0.00012882,2]
[330346927,1719281432613,-238.80592227,0.00012882,2]
[330346928,1719281432622,-217.1393022,0.000138,2]
[330346929,1719281432635,-180.70752609,0.000138,2]
[330346930,1719281432644,-300.0,0.00013898,2]
[330346931,1719281432653,-150.0,0.00013899,2]
[330346932,1719281432665,-33.86975054,0.00013899,2]
[330346933,1719281432676,-546.53616094,0.00013899,2]
[330346934,1719281432857,-1317.06365256,0.00013899,2]
[330346935,1719281432869,-3585.71039773,0.00013899,2]
[330346936,1719281432878,-3947.33125945,0.000139,2]
[330346937,1719281432890,-382.31751455,0.000139,2]
[330346938,1719281432902,-806.77598637,0.000139,2]
[330346939,1719281432914,-2123.26335576,0.000139,2]
[330346940,1719281432926,-562.4996314,0.000139,2]
[330346941,1719281432938,-2000.0,0.000139,2]
[330346942,1719281432949,-2923.10063545,0.000139,2]
[330346943,1719281432960,-31632.12696975,0.000139,2]
[330346944,1719281432972,-3398.55887267,0.000139,2]
[330346945,1719281432983,-22887.87552733,0.000139,2]
[330346946,1719281432992,-548.6596,0.000139,2]
[330346947,1719281433002,-165.87233912,0.000139,2]
[330346948,1719281433012,-2500.0,0.000139,2]
[330346949,1719281433021,-552.51494431,0.000139,2]
[330346950,1719281433031,-1017.85215336,0.000139,2]
[330346951,1719281433041,-4837.58810789,0.000139,2]
[330346952,1719281433051,-161.75726165,0.000139,2]
[330346953,1719281433060,-154.61313562,0.000139,2]
[330346954,1719281433070,-10006.2867295,0.000139,2]
[330346955,1719281433080,-250.0,0.00013939,2]
[330346956,1719281433089,-250.0,0.00013943,2]
[330346957,1719281433099,-1038.06450971,0.00013999,5]
[330346958,1719281433108,-43922.36495848,0.00014,2]
[330346959,1719281433120,-597.59958667,0.00014,2]
[330346960,1719281433131,-935.31398996,0.00014,2]
[330346961,1719281433171,-17355.87275912,0.00014,2]
[330346962,1719281433183,-1120.97999995,0.00014,2]
[330346963,1719281433194,-1921.84905006,0.00014,2]
[330346964,1719281433206,-5611.57327231,0.00014,2]
[330346967,1719281438289,-785.92464769,0.00014,2]
[330346969,1719281438301,-782.62207443,0.00014,2]
[330346971,1719281438313,-2697.19232896,0.00014,2]
[330346979,1719281438725,-2311.98108281,0.00014,2]
[330346980,1719281438737,-5808.32989986,0.00014,2]
[330346983,1719281440047,-797.43710558,0.00014,2]
[330346984,1719281440059,-317.04913614,0.00014,2]
[330346985,1719281440430,-495.55389865,0.00014,2]
[330346986,1719281440442,-2118.8622,0.00014,2]
[330346987,1719281440454,-1259.20000002,0.00014,2]
[330346988,1719281440468,-3604.54927796,0.00014,2]
[330346989,1719281440482,-1197.8095201,0.00014,2]
[330347003,1719281443232,-465.66500004,0.00014,2]
[330347004,1719281443244,-45390.75,0.00014,2]
[330347005,1719281443305,-0.42279672,0.00014,2]
[330347006,1719281443343,-513.18500005,0.00014,2]
[330347013,1719281446933,-2e-08,0.00014,2]
[330347014,1719281446945,-606.71,0.00014,2]
[330347015,1719281446957,-78891.1092216,0.00014,2]
[330347026,1719282445147,-727.82,0.00011599,2]
[330347027,1719282445170,-6030.40988356,0.0001246,2]
[330347028,1719282547095,-322.51952412,0.0001052,2]
[330347029,1719282552012,-368.90047588,0.0001052,2]
[330347030,1719282552267,-2060.1443,0.00011499,2]
[330347031,1719282552526,-842.78,0.0001239,2]
[330347032,1719282552552,-1894.54,0.00012396,2]
[330347033,1719282552575,-200.0,0.00012413,2]
[330347034,1719282552598,-150.0,0.00012454,2]
[330347035,1719282552620,-300.0,0.00012459,2]
[330347036,1719282552884,-17869.59011644,0.0001246,2]
[330347037,1719282552973,-3107.87800998,0.00012474,2]
[330347038,1719282556134,-1488.92232631,0.00012474,2]
[330347039,1719282568100,-7684.04966371,0.00012474,2]
[330347040,1719282568120,-151.27,0.00012477,2]
[330347041,1719282568141,-2181.11,0.00012483,2]
[330347042,1719282568166,-1000.0,0.00012484,2]
[330347043,1719282568186,-345.54,0.00012503,2]
[330347044,1719282568207,-499.99,0.00012503,2]
[330347045,1719282568498,-691.42,0.00012783,2]
[330347046,1719282568529,-250.0,0.00012934,2]
[330347047,1719282568549,-1641.75,0.00012959,2]
[330347048,1719282568569,-1076.44,0.00012984,2]
[330347049,1719282568592,-370.17,0.00013031,2]
[330347050,1719282568617,-186.54,0.00013034,2]
[330347051,1719282568639,-370.17,0.00013067,2]
[330347052,1719282568660,-250.0,0.0001307,2]
[330347053,1719282568681,-370.17,0.00013102,2]
[330347054,1719282568700,-757.16,0.00013105,2]
[330347055,1719282568724,-370.17,0.00013138,2]
[330347056,1719282568748,-150.0,0.00013152,2]
[330347057,1719282568773,-300.0,0.00013152,2]
[330347058,1719282568798,-150.0,0.00013152,2]
[330347059,1719282568822,-370.17,0.00013174,2]
[330347060,1719282568845,-370.17,0.0001321,2]
[330347061,1719282568866,-67.73843459,0.00013245,2]
[330347063,1719282593246,199.062511,0.00025,64]
[330347064,1719282620394,181.062511,0.00025,64]
[330347081,1719282632407,-182.45713871,0.0001246,2]
[330347082,1719282632416,-250.0,0.00012985,2]
[330347083,1719282632426,-168.8,0.0001302,2]
[330347084,1719282632435,-302.43156541,0.00013245,2]
[330347085,1719282632444,-173.12159595,0.00013281,2]
[330347086,1719282632457,-197.04840405,0.00013281,2]
[330347087,1719282632466,-370.17,0.00013317,2]
[330347088,1719282632476,-139.11769651,0.00013352,2]
[330347089,1719282632487,-231.05230349,0.00013352,2]
[330347090,1719282632496,-370.17,0.00013388,2]
[330347091,1719282632506,-370.17,0.00013424,2]
[330347092,1719282632515,-370.17,0.0001346,2]
[330347093,1719282632524,-370.17,0.00013495,2]
[330347094,1719282632534,-370.17,0.00013531,2]
[330347095,1719282632544,-370.17,0.00013567,2]
[330347096,1719282632553,-244.98481276,0.00013603,2]
[330347097,1719282632565,-125.18518724,0.00013603,2]
[330347098,1719282632574,-264.65568543,0.00013638,2]
[330347099,1719282632586,-105.51431457,0.00013638,2]
[330347100,1719282632595,-241.2559026,0.00013674,2]
[330347101,1719282632607,-128.9140974,0.00013674,2]
[330347102,1719282632616,-300.0,0.00013698,2]
[330347103,1719282632625,-43.22912762,0.00013698,2]
[330347104,1719282632636,-106.77087238,0.00013698,2]
[330347105,1719282632646,-163.7,0.00013699,2]
[330347106,1719282632655,-35.73380508,0.00013699,2]
[330347107,1719282632667,-2715.26619492,0.00013699,2]
[330347108,1719282632676,-702.59,0.00013699,2]
[330347109,1719282632686,-200.0,0.00013699,2]
[330347110,1719282632695,-474.28975858,0.00013709,2]
[330347111,1719282632705,-370.17,0.0001371,2]
[330347112,1719282632714,-13.20433499,0.00013744,2]
[330347113,1719282632771,-551.24148495,0.00013744,2]
[330347114,1719282632783,-9974.01297217,0.00013744,2]
[330347115,1719282632793,-192.36221955,0.00013798,2]
[330347116,1719282632802,-3761.7062,0.000138,2]
[330347117,1719282632814,-258.4992,0.000138,2]
[330347118,1719282632823,-150.0,0.0001386,2]
[330347119,1719282632832,-150.0,0.0001386,2]
[330347120,1719282632843,-151.78722,0.0001386,2]
[330347121,1719282632851,-500.0,0.00013888,2]
[330347122,1719282632860,-631.71682684,0.000139,2]
[330347123,1719282632871,-3255.09037,0.000139,2]
[330347124,1719282632882,-5621.6503,0.000139,2]
[330347125,1719282632893,-6055.9025272,0.000139,2]
[330347126,1719282632905,-6043.04767596,0.000139,2]
[330347127,1719282632914,-1258.7277,0.000139,2]
[330347128,1719282632924,-216.8871,0.000139,2]
[330347129,1719282632933,-9075.45887734,0.000139,2]
[330347130,1719282633598,-711.72882134,0.000139,2]
[330347131,1719282633610,-298.96499867,0.000139,2]
[330347132,1719282633622,-2146.38,0.000139,2]
[330347133,1719282633633,-3479.25723878,0.000139,2]
[330347134,1719282633645,-299.6900001,0.000139,2]
[330347135,1719282633656,-3415.57845701,0.000139,2]
[330347141,1719282639073,-552.51494431,0.00013245,2]
[330347144,1719282639083,-2657.43000523,0.000139,2]
[330347146,1719282639096,-679.48200153,0.000139,2]
[330347148,1719282639107,-1980.3877,0.000139,2]
[330347150,1719282639117,-10224.05649961,0.000139,2]
[330347152,1719282639130,-2449.80610039,0.000139,2]
[330347154,1719282639140,-1000.0,0.000139,2]
[330347156,1719282639151,-2500.0,0.000139,2]
[330347158,1719282639161,-2373.7138,0.000139,2]
[330347160,1719282639172,-1736.95462163,0.00014,2]
[330347162,1719282639185,-23957.7,0.00014,2]
[330347164,1719282639199,-46504.47736385,0.00014,2]
[330347165,1719282639212,-9553.154996,0.00014,2]
[330347166,1719282639225,-9084.2900005,0.00014,2]
[330347167,1719282639238,-9523.63571041,0.00014,2]
[330347168,1719282639251,-1393.72159946,0.00014,2]
[330347169,1719282639537,-3201.30434643,0.00014,2]
[330347171,1719282639550,-4441.45816174,0.00014,2]
[330347172,1719282639562,-683.17332148,0.00014,2]
[330347173,1719282639574,-3912.81499996,0.00014,2]
[330347174,1719282639586,-726.22550044,0.00014,2]
[330347175,1719282639599,-2379.43385574,0.00014,2]
[330347176,1719282639609,-237.93,0.00014,2]
[330347177,1719282639620,-652.51143,0.00014,2]
[330347178,1719282639630,-1000.0,0.00014044,2]
[330347179,1719282639642,-693.377,0.00014246,2]
[330347180,1719282639651,-1000.0,0.00014246,2]
[330347181,1719282639662,-496.83301372,0.00014265,2]
[330347182,1719282639674,-1004.58,0.00014265,2]
[330347184,1719282640563,-551.81182318,0.00014265,2]
[330347187,1719282640575,-467.7751631,0.00014265,2]
[330347189,1719282640586,-200.0,0.00014289,2]
[330347191,1719282640596,-2.31983691,0.00014467,2]
[330347192,1719282641024,-482.71136428,0.00013698,2]
[330347193,1719282641037,-476.67914415,0.00013698,2]
[330347229,1719282646909,-1004.84499967,0.00013698,2]
[330347230,1719282646921,-8574.22328401,0.00013698,2]
[330347231,1719282646931,-221.88,0.00014766,2]
[330347232,1719282646941,-199.30644213,0.000149,2]
[330347233,1719282646950,-167.23781146,0.000149,2]
[330347234,1719282646960,-348.83781608,0.000149,2]
[330347235,1719282646971,-158.2435339,0.000149,2]
[330347236,1719282646984,-1726.91780822,0.000149,2]
[330347237,1719282646994,-1170.27383653,0.000149,2]
[330347238,1719282647002,-333.50716187,0.000149,2]
[330347239,1719282647011,-186.97,0.00014985,2]
[330347240,1719282647023,-1923.63638429,0.00015,2]
[330347241,1719282647032,-27092.37473286,0.00015,2]
[330347243,1719282794734,200.0,0.00025657,120]
[330347244,1719282799754,200.0,0.00025243,120]
[330347248,1719283303130,181.062508,0.00025,70]
[330347250,1719283637146,-1183.54623426,0.00010996,2]
[330347251,1719283637170,-312.15,0.00011096,2]
[330347252,1719283637199,-1381.53424656,0.000111,2]
[330347253,1719283637222,-150.0,0.00011198,2]
[330347254,1719283637245,-1168.92331022,0.00011199,2]
[330347255,1719283750174,-4215.0,0.00010996,2]
[330347256,1719283750200,-2862.5582996,0.00011099,2]
[330347257,1719283751621,-300.0,0.00011198,2]
[330347258,1719283751648,-217718.7717004,0.00011199,2]
[330347259,1719283755097,-2022.03292318,0.00011199,2]
[330347260,1719283762093,-23900.0,0.00011199,2]
[330347261,1719283763545,-72017.269,0.00011199,2]
[330347262,1719283766482,-25321.772,0.00011199,2]
[330347263,1719283767120,-2359.1681,0.00011199,2]
[330347264,1719283773111,-203176.05944904,0.00011199,2]
[330347265,1719283773136,-552.51494431,0.00011199,2]
[330347266,1719283773166,-2438.11409766,0.00011199,2]
[330347267,1719283773190,-219.2605486,0.00011199,2]
[330347268,1719283773212,-305.64375524,0.00011199,2]
[330347269,1719283773235,-2045.59045936,0.000112,2]
[330347270,1719283773258,-1381.53424654,0.0001205,2]
[330347271,1719283773281,-420.0,0.00012303,2]
[330347272,1719283773310,-186.54,0.00012587,2]
[330347273,1719283773337,-12088.67,0.00012725,2]
[330347274,1719283773359,-250.0,0.00012779,2]
[330347275,1719283773380,-150.0,0.00012831,2]
[330347276,1719283773401,-7859.54,0.00012876,2]
[330347277,1719283773422,-300.6,0.00012876,2]
[330347278,1719283773444,-724.93,0.00012876,2]
[330347279,1719283773465,-4105.13,0.00012876,2]
[330347280,1719283773487,-1023.98960692,0.000129,2]
[330347281,1719283773509,-1023.9896069,0.000129,2]
[330347282,1719283773531,-1381.53424654,0.00013,2]
[330347283,1719283773556,-4338.88903889,0.0001301,2]
[330347284,1719283783470,1767.5,0.00026,120]
[330347289,1719283832476,-657.97,0.00011235,2]
[330347290,1719283832486,-161.25976206,0.0001291,2]
[330347291,1719283832496,-4047.38378596,0.0001301,2]
[330347292,1719283832507,-397.56791311,0.0001301,2]
[330347294,1719283832519,-302.11780374,0.0001301,2]
[330347296,1719283832531,-997.8724334,0.0001301,2]
[330347298,1719283832543,-642.3977412,0.0001301,2]
[330347301,1719283832555,-1629.4257306,0.0001301,2]
[330347303,1719283832567,-1074.32,0.0001301,2]
[330347304,1719283832579,-9842.085779,0.0001301,2]
[330347305,1719283832592,-627.9397741,0.0001301,2]
[330347306,1719283832602,-489.62,0.00013085,2]
[330347307,1719283832613,-250.0,0.00013116,2]
[330347308,1719283832623,-657.97,0.00013499,2]
[330347309,1719283832634,-484.00410527,0.00013503,2]
[330347310,1719283832644,-150.0,0.00013507,2]
[330347311,1719283832654,-463.73418851,0.00013574,2]
[330347312,1719283832664,-221.88,0.00013642,2]
[330347313,1719283832674,-999.99,0.00013657,2]
[330347314,1719283832684,-1000.0,0.0001367,2]
[330347315,1719283832694,-351.29,0.00013699,2]
[330347316,1719283832704,-1000.31,0.00013699,2]
[330347317,1719283832714,-1189.52705148,0.00013772,2]
[330347318,1719283832852,-264.21294852,0.00013772,2]
[330347320,1719283832863,-671.04519412,0.0001379,2]
[330347323,1719283832875,-586.03569974,0.0001379,2]
[330347325,1719283832885,-1257.08089383,0.0001379,2]
[330347327,1719283832895,-1257.08089383,0.0001379,2]
[330347329,1719283832905,-266.10463106,0.000138,2]
[330347331,1719283832914,-2326.31672408,0.00013808,2]
[330347337,1719283832964,-456.76620795,0.00013808,2]
[330347339,1719283832975,-956.69375819,0.00013808,2]
[330347363,1719283838453,-4479.64394014,0.00013808,2]
[330347365,1719283838462,-4793.55400338,0.00013898,2]
[330347367,1719283838472,-10318.81205371,0.00013898,2]
[330347369,1719283838481,-161.25976206,0.000139,2]
[330347371,1719283838491,-690.28734422,0.000139,2]
[330347373,1719283838500,-155.09913026,0.000139,2]
[330347375,1719283838510,-5380.72155244,0.00013912,2]
[330347377,1719283838519,-703.92770974,0.00013933,2]
[330347379,1719283838529,-1381.53424654,0.0001395,2]
[330347381,1719283838539,-217.47361305,0.00013997,2]
[330347384,1719283838550,-449.87299426,0.00013999,2]
[330347386,1719283838559,-191163.51654704,0.00014,2]
[330347388,1719283838573,-392568.63727605,0.00014,2]
[330347390,1719283838583,-165.316472,0.00014,2]
[330347391,1719283838592,-271.467367,0.00014,2]
[330347392,1719283838602,-163.7,0.00014033,2]
[330347393,1719283838612,-170.7523573,0.00014466,2]
[330347394,1719283838622,-412.55586859,0.00014466,2]
[330347395,1719283838632,-328.50066625,0.00014646,2]
[330347396,1719283838642,-291.44989283,0.00014646,2]
[330347397,1719283838652,-272.65161967,0.00014699,2]
[330347398,1719283838661,-703.92770969,0.00014747,2]
[330347399,1719283838670,-474.28975858,0.00014848,2]
[330347400,1719283838680,-290.81299066,0.00014879,2]
[330347401,1719283838690,-500.0,0.0001488,2]
[330347402,1719283838699,-1381.53424654,0.000149,2]
[330347403,1719283838709,-152.23958,0.00014999,2]
[330347404,1719283838718,-157.721565,0.00014999,2]
[330347405,1719283838727,-163.20806949,0.00014999,2]
[330347406,1719283838737,-12830.13409179,0.00015,2]
[330347410,1719283838819,-70606.94436596,0.00015,2]
[330347422,1719283838921,-659.75132017,0.00015,2]
[330347425,1719283838933,-255.51671205,0.00015,2]
[330347478,1719283840810,-34985.82512908,0.00015,2]
[330347479,1719283840822,-161000.00268234,0.00015,2]
[330347480,1719283841187,-1465746.52913578,0.00015,2]
[330347481,1719283841198,-66972.23082756,0.00015,2]
[330347482,1719283841208,-5000.0,0.00015,2]
[330347483,1719283841220,-94077.71389333,0.00015,2]
[330347484,1719283841230,-305038.69526324,0.00015,2]
[330347485,1719283841240,-153.702026,0.00015,2]